fUST/lending_fUST_20250308
["ID","MTS","AMOUNT","RATE_DAILY","PERIOD"]
[355617790,1741391008695,-161.0,0.000487,120]
[355617791,1741391008720,-500.93511211,0.00048723,10]
[355617792,1741391008744,-500.36053896,0.00048723,10]
[355617793,1741391008770,-1000.0,0.00049,30]
[355617794,1741391008795,-500.0,0.00049314,120]
[355617795,1741391008820,-2500.0,0.00049315,120]
[355617796,1741391008846,-2500.0,0.00049315,120]
[355617797,1741391008871,-2500.0,0.00049315,120]
[355617798,1741391008896,-1941.96,0.00049315,120]
[355617799,1741391008922,-200.0,0.00049446,120]
[355617800,1741391008948,-199.97,0.00049588,120]
[355617801,1741391008974,-4284.24878371,0.0005,30]
[355617802,1741391048793,850.9847602,0.00041707,2]
[355617803,1741391087893,19304.68207937,0.00045,7]
[355617804,1741391143100,-150.0,0.000484,2]
[355617805,1741391143122,-500.0,0.00048973,10]
[355617806,1741391143142,-500.0,0.00048973,2]
[355617807,1741391143167,-428.25531358,0.00049,30]
[355617808,1741391145187,-5163.10439898,0.00049,30]
[355617809,1741391145215,-5591.35971256,0.00049,30]
[355617810,1741391145240,-14245.53588846,0.00049,30]
[355617811,1741391146711,-21572.34359839,0.00049,30]
[355617812,1741391146736,-3427.65640161,0.00049,30]
[355617813,1741391147599,-25000.0,0.00049,30]
[355617814,1741391148453,-7390.22308524,0.00049,30]
[355617815,1741391148478,-5000.0,0.000493,120]
[355617816,1741391148503,-745.64342448,0.00049416,28]
[355617817,1741391148527,-412.7,0.00049506,30]
[355617818,1741391148551,-595.68,0.00049506,10]
[355617819,1741391148577,-5715.75121629,0.0005,30]
[355617820,1741391148601,-2000.0,0.0005,49]
[355617821,1741391148628,-267.0,0.0005,2]
[355617822,1741391148654,-172.0,0.0005,120]
[355617823,1741391154358,500.0,0.00049314,120]
[355617824,1741391160296,815.40662475,0.00049,30]
[355617825,1741391162643,815.40662475,0.00049,30]
[355617826,1741391164350,500.0,0.00048999,120]
[355617827,1741391164655,70.18902449,0.00049273,120]
[355617828,1741391164683,429.81097551,0.00049273,120]
[355617829,1741391164901,500.0,0.00049547,120]
[355617830,1741391165117,503.99214896,0.00048282,120]
[355617831,1741391165156,500.0,0.00049821,120]
[355617832,1741391167070,500.0,0.00048282,120]
[355617833,1741391168331,500.0,0.00048999,120]
[355617834,1741391168572,500.0,0.00049273,120]
[355617835,1741391168815,500.0,0.00049547,120]
[355617836,1741391169044,500.0,0.00049821,120]
[355617837,1741391178812,500.0,0.00048282,120]
[355617838,1741391195827,-500.44388815,0.00050095,120]
[355617839,1741391195851,-528.74439801,0.00050095,120]
[355617840,1741391197676,500.0,0.00048126,120]
[355617841,1741391199604,500.0,0.00048126,120]
[355617842,1741391201006,500.0,0.00048282,120]
[355617843,1741391201266,500.0,0.00048556,120]
[355617844,1741391201519,562.7,0.0004883,120]
[355617845,1741391202279,204.017126,0.0003589,2]
[355617846,1741391202510,204.017126,0.00041211,2]
[355617847,1741391202714,204.017126,0.00046532,2]
[355617848,1741391205812,500.0,0.00048126,120]
[355617849,1741391206065,500.0,0.000484,120]
[355617850,1741391206331,313.2,0.00048674,120]
[355617851,1741391209490,500.0,0.00049314,120]
[355617852,1741391209761,437.86033584,0.00049588,120]
[355617853,1741391209791,62.13966416,0.00049588,120]
[355617854,1741391210010,500.0,0.00049862,120]
[355617855,1741391213085,-206.90415627,0.00050136,120]
[355617856,1741391218478,500.0,0.00048126,120]
[355617857,1741391220998,451.3444199,0.00046,42]
[355617858,1741391226136,-136.28438618,0.00050136,120]
[355617859,1741391226162,-200.0,0.00050473,120]
[355617860,1741391226185,-200.0,0.00050476,120]
[355617861,1741391226207,-225.74,0.000508,7]
[355617862,1741391226229,-200.0,0.00051476,120]
[355617863,1741391226249,-161.0,0.000516,120]
[355617864,1741391226270,-204.017126,0.00051853,2]
[355617865,1741391226291,-200.0,0.00052837,120]
[355617866,1741391226310,-2275.0,0.00053255,120]
[355617867,1741391226330,-193.0,0.000534,120]
[355617868,1741391226351,-10000.0,0.00054,120]
[355617869,1741391226371,-2250.0,0.00054,120]
[355617870,1741391226392,-200.0,0.00054088,120]
[355617871,1741391226413,-5000.0,0.000543,120]
[355617872,1741391226434,-1000.0,0.00054452,10]
[355617873,1741391226454,-1000.0,0.00054452,2]
[355617874,1741391226477,-1154.83000199,0.000545,120]
[355617875,1741391226499,-161.0,0.000545,120]
[355617876,1741391226519,-666.0,0.00054794,120]
[355617877,1741391226541,-1830.78883501,0.00054898,120]
[355617878,1741391226562,-172.0,0.00055,120]
[355617879,1741391226584,-200.0,0.00055254,120]
[355617880,1741391226605,-200.0,0.0005569,120]
[355617881,1741391226626,-1830.78883501,0.00055898,120]
[355617882,1741391226645,-316.978,0.00056255,120]
[355617883,1741391226667,-1001.28912697,0.00056499,120]
[355617884,1741391226689,-5000.0,0.000565,120]
[355617885,1741391226710,-1830.78883501,0.00056898,120]
[355617886,1741391226733,-150.0,0.000569,4]
[355617887,1741391226755,-204.017126,0.00057174,2]
[355617888,1741391226777,-200.0,0.0005722,120]
[355617889,1741391226799,-200.0,0.00057271,120]
[355617890,1741391226822,-161.0,0.000574,120]
[355617891,1741391226842,-1830.78883501,0.00057898,120]
[355617892,1741391226863,-5000.0,0.000583,120]
[355617893,1741391226884,-188.12,0.000584,14]
[355617894,1741391226905,-5000.0,0.000585,120]
[355617895,1741391226926,-3845.16999801,0.000585,120]
[355617896,1741391226946,-1830.78883501,0.00058898,120]
[355617897,1741391226970,-199.03212425,0.000589,2]
[355617898,1741391226991,-239.39,0.0005899,10]
[355617899,1741391227017,-500.0,0.00058999,2]
[355617900,1741391227041,-500.0,0.00058999,2]
[355617901,1741391227066,-500.0,0.00058999,2]
[355617902,1741391227091,-500.0,0.00058999,2]
[355617903,1741391227121,-500.0,0.00058999,2]
[355617904,1741391227147,-500.0,0.00058999,2]
[355617905,1741391227172,-500.0,0.00058999,2]
[355617906,1741391227198,-500.0,0.00058999,2]
[355617907,1741391227225,-500.0,0.00058999,2]
[355617908,1741391227249,-500.0,0.00058999,2]
[355617909,1741391227274,-500.0,0.00058999,2]
[355617910,1741391227299,-500.0,0.00058999,2]
[355617911,1741391227323,-432.24272291,0.00058999,2]
[355617912,1741391227347,-500.0,0.00058999,2]
[355617913,1741391227370,-500.0,0.00058999,2]
[355617914,1741391227394,-500.0,0.00058999,2]
[355617915,1741391227416,-500.0,0.00058999,2]
[355617916,1741391227439,-500.0,0.00058999,2]
[355617917,1741391227465,-500.0,0.00058999,2]
[355617918,1741391227488,-500.0,0.00058999,2]
[355617919,1741391227511,-500.0,0.00058999,2]
[355617920,1741391227533,-500.0,0.00058999,2]
[355617921,1741391227561,-500.0,0.00058999,2]
[355617922,1741391227584,-500.0,0.00058999,2]
[355617923,1741391227606,-500.0,0.00058999,2]
[355617924,1741391227629,-500.0,0.00058999,2]
[355617925,1741391227651,-500.0,0.00058999,2]
[355617926,1741391227674,-500.0,0.00058999,2]
[355617927,1741391227698,-500.0,0.00058999,2]
[355617928,1741391227721,-500.0,0.00058999,2]
[355617929,1741391227744,-500.0,0.00058999,2]
[355617930,1741391227767,-500.0,0.00058999,2]
[355617931,1741391227789,-500.0,0.00058999,2]
[355617932,1741391227812,-500.0,0.00058999,2]
[355617933,1741391227851,-200.0,0.00058999,2]
[355617934,1741391227875,-5591.35971256,0.00059,30]
[355617935,1741391227895,-5591.35971256,0.00059,30]
[355617936,1741391227916,-35817.87948685,0.00059,30]
[355617937,1741391227936,-35817.87948685,0.00059,30]
[355617938,1741391227957,-815.40662475,0.00059,30]
[355617939,1741391227980,-815.40662475,0.00059,30]
[355617940,1741391228000,-5000.0,0.000593,120]
[355617941,1741391228021,-1830.78883501,0.00059898,120]
[355617942,1741391228043,-174.0,0.0006,120]
[355617943,1741391228065,-174.0,0.0006,120]
[355617944,1741391228087,-172.0,0.0006,120]
[355617945,1741391228115,-500.0,0.0006,2]
[355617946,1741391228139,-193.0,0.000601,120]
[355617947,1741391228164,-200.0,0.00060294,120]
[355617948,1741391228189,-161.0,0.000603,120]
[355617949,1741391228211,-5000.0,0.000603,120]
[355617950,1741391228234,-500.0,0.0006074,15]
[355617951,1741391228256,-501.12293708,0.00060867,15]
[355617952,1741391228277,-500.0,0.00060867,15]
[355617953,1741391228298,-500.0,0.00060867,15]
[355617954,1741391228320,-500.0,0.00060867,15]
[355617955,1741391228341,-309.357643,0.00060867,15]
[355617956,1741391228361,-604.25628213,0.00060867,15]
[355617957,1741391228382,-413.8987255,0.00060867,14]
[355617958,1741391228402,-500.0,0.00060867,15]
[355617959,1741391228424,-500.0,0.00060867,15]
[355617960,1741391228445,-500.0,0.00060867,2]
[355617961,1741391228468,-500.0,0.00060867,14]
[355617962,1741391228490,-500.0,0.00060867,15]
[355617963,1741391228512,-500.0,0.00060867,14]
[355617964,1741391228533,-500.0,0.00060867,14]
[355617965,1741391228554,-1830.78883501,0.00060898,120]
[355617966,1741391228576,-62779.1719114,0.00060922,5]
[355617967,1741391228597,-694.15641506,0.00060922,5]
[355617968,1741391228618,-500.0,0.00060973,15]
[355617969,1741391228641,-200.0,0.00061073,120]
[355617970,1741391228662,-951.94,0.000612,30]
[355617971,1741391228682,-500.0,0.0006137,2]
[355617972,1741391228703,-499.0,0.00061394,15]
[355617973,1741391228725,-150.0,0.000619,4]
[355617974,1741391228746,-1830.78883501,0.0006209,120]
[355617975,1741391228767,-1830.78883501,0.0006209,120]
[355617976,1741391228789,-62779.1719114,0.0006238,5]
[355617977,1741391228809,-694.15641506,0.0006238,5]
[355617978,1741391228830,-204.017126,0.00062495,2]
[355617979,1741391228851,-5000.0,0.000625,120]
[355617980,1741391228871,-5000.0,0.000625,120]
[355617981,1741391228892,-1281.99,0.000625,30]
[355617982,1741391228912,-500.0,0.0006274,2]
[355617983,1741391228933,-1830.78883501,0.0006309,120]
[355617984,1741391228958,-500.0,0.0006411,2]
[355617985,1741391228981,-5000.0,0.000643,120]
[355617986,1741391229003,-1500.0,0.00064471,10]
[355617987,1741391229023,-706.23671179,0.00064471,2]
[355617988,1741391229095,500.0,0.00048126,120]
[355617989,1741391232123,-500.0,0.00060973,15]
[355617990,1741391232150,-2.71409826,0.00060973,15]
[355617991,1741391236122,-497.28590174,0.00060973,15]
[355617992,1741391236145,-500.0,0.00060973,15]
[355617993,1741391236167,-500.0,0.00060973,15]
[355617994,1741391236191,-62779.1719114,0.0006449,5]
[355617995,1741391236213,-694.15641506,0.0006449,5]
[355617996,1741391236237,-456.51,0.0006449,10]
[355617997,1741391236259,-13151.1484728,0.000645,120]
[355617998,1741391239072,-500.0,0.00060973,15]
[355617999,1741391239093,-500.0,0.00060973,2]
[355618000,1741391239119,-500.0,0.00060973,15]
[355618001,1741391239141,-13003.68152819,0.000645,120]
[355618002,1741391239164,-5000.0,0.00065,120]
[355618003,1741391239186,-5000.0,0.000653,120]
[355618004,1741391239208,-2282.887878,0.000653,120]
[355618005,1741391239231,-200.0,0.00065418,120]
[355618006,1741391239251,-500.0,0.00065479,2]
[355618007,1741391239274,-800.0,0.00066164,120]
[355618008,1741391239295,-5000.0,0.000663,120]
[355618009,1741391239316,-1000.0,0.00066346,14]
[355618010,1741391239336,-1000.0,0.00066346,14]
[355618011,1741391239356,-800.0,0.00066438,120]
[355618012,1741391239376,-500.0,0.00066452,15]
[355618013,1741391239396,-1000.0,0.00066452,15]
[355618014,1741391239416,-1000.0,0.00066452,15]
[355618015,1741391239436,-1000.0,0.00066452,15]
[355618016,1741391239457,-520.64423,0.00066452,2]
[355618017,1741391239479,-5000.0,0.000665,120]
[355618018,1741391239500,-5000.0,0.000665,120]
[355618019,1741391239522,-99.39740504,0.00066712,120]
[355618020,1741391240108,-162.97829517,0.00066712,120]
[355618021,1741391243317,597.7575606,0.00049416,120]
[355618022,1741391246088,500.0,0.00048126,120]
[355618023,1741391250162,500.0,0.00048126,120]
[355618024,1741391258493,500.0,0.00041092,30]
[355618025,1741391258779,188.62,0.000485,2]
[355618026,1741391278169,500.0,0.00048126,120]
[355618027,1741391286407,169.4700346,0.00048282,120]
[355618028,1741391292999,308.8641293,0.00041092,30]
[355618029,1741391295717,500.0,0.00041092,30]
[355618030,1741391295997,500.0,0.00041366,120]
[355618031,1741391296260,500.0,0.0004164,120]
[355618032,1741391296506,500.0,0.00041914,120]
[355618033,1741391296759,500.0,0.00042188,120]
[355618034,1741391297028,486.23578754,0.00042462,120]
[355618035,1741391297999,500.0,0.00048282,120]
[355618036,1741391299186,504.74228591,0.00041092,30]
[355618037,1741391301300,500.0,0.00041092,30]
[355618038,1741391308738,500.0,0.00048282,120]
[355618039,1741391310949,500.0,0.00048282,120]
[355618040,1741391319360,500.0,0.00049509,120]
[355618041,1741391320389,2500.0,0.00049129,14]
[355618042,1741391327800,500.0,0.00041092,30]
[355618043,1741391328392,500.0,0.00049509,120]
[355618044,1741391333608,500.0,0.00049315,120]
[355618048,1741391338283,500.0,0.00041092,30]
[355618049,1741391339119,2500.0,0.0004912,14]
[355618050,1741391340682,500.0,0.00041092,30]
[355618051,1741391342311,374.0,0.00049508,5]
[355618052,1741391346789,500.0,0.00049314,120]
[355618053,1741391347053,423.02299352,0.00049588,120]
[355618097,1741391432165,-303.627991,0.00047999,120]
[355618099,1741391432182,-196.372009,0.00047999,120]
[355618101,1741391432191,-500.0,0.00047999,120]
[355618103,1741391432200,-500.0,0.00048126,120]
[355618105,1741391432211,-500.0,0.00048126,120]
[355618107,1741391432220,-529.39,0.00048126,120]
[355618108,1741391432230,-500.0,0.00048126,120]
[355618110,1741391432239,-500.0,0.00048126,30]
[355618112,1741391432250,-500.0,0.00048126,120]
[355618114,1741391432260,-500.0,0.00048126,120]
[355618116,1741391432269,-500.0,0.00048126,120]
[355618117,1741391432278,-500.0,0.00048126,120]
[355618118,1741391432287,-163.23559309,0.00048267,2]
[355618120,1741391432297,-502.22946817,0.00048282,120]
[355618122,1741391432306,-500.0,0.00048282,120]
[355618124,1741391432316,-500.0,0.000484,120]
[355618126,1741391432325,-288.12,0.000484,120]
[355618128,1741391432335,-500.0,0.00048674,120]
[355618130,1741391432344,-289.98,0.00048948,120]
[355618131,1741391432353,-4193.51978442,0.00049,30]
[355618138,1741391432477,-4193.51978442,0.00049,30]
[355618139,1741391432488,-500.0,0.00049314,120]
[355618140,1741391432497,-594.43,0.00049509,120]
[355618141,1741391432507,-1982.48888107,0.00049509,2]
[355618142,1741391432518,-10000.0,0.00049509,30]
[355618143,1741391432527,-200.0,0.00049509,40]
[355618144,1741391432537,-200.0,0.00049509,40]
[355618145,1741391432547,-200.0,0.00049509,40]
[355618146,1741391432556,-200.0,0.00049509,40]
[355618147,1741391432566,-200.0,0.00049509,40]
[355618148,1741391432575,-200.0,0.00049509,40]
[355618149,1741391432585,-200.0,0.00049509,40]
[355618150,1741391432594,-200.0,0.00049509,40]
[355618151,1741391432604,-200.0,0.00049509,40]
[355618152,1741391432613,-200.0,0.00049509,40]
[355618153,1741391432622,-200.0,0.00049509,40]
[355618154,1741391432631,-200.0,0.00049509,40]
[355618155,1741391432641,-200.0,0.00049509,40]
[355618156,1741391432650,-200.0,0.00049509,40]
[355618157,1741391432660,-210.0,0.00049509,40]
[355618158,1741391432669,-251.25,0.00049509,30]
[355618159,1741391432678,-335.75,0.00049509,30]
[355618160,1741391432688,-150.0,0.00049509,90]
[355618161,1741391432697,-5000.0,0.00049509,120]
[355618162,1741391432706,-250.0,0.00049509,10]
[355618163,1741391432716,-250.0,0.00049509,10]
[355618164,1741391432725,-250.0,0.00049509,10]
[355618165,1741391432735,-393.532419,0.00049509,10]
[355618166,1741391432744,-500.0,0.00049515,120]
[355618167,1741391432754,-76.97700648,0.00049588,120]
[355618168,1741391432763,-500.0,0.00049862,120]
[355618169,1741391432773,-500.0,0.00050136,120]
[355618170,1741391432782,-500.0,0.0005041,120]
[355618171,1741391432792,-500.0,0.00050684,120]
[355618172,1741391432801,-500.0,0.00050958,120]
[355618173,1741391432810,-449.12,0.00051232,120]
[355618174,1741391432819,-500.0,0.00051816,120]
[355618175,1741391432829,-150.0,0.00053553,120]
[355618176,1741391432839,-200.0,0.00053967,120]
[355618177,1741391432848,-4193.51978442,0.00059,30]
[355618178,1741391432857,-4193.51978442,0.00059,30]
[355618179,1741391432868,-500.0,0.00061816,120]
[355618180,1741391432877,-151.0,0.00061862,2]
[355618181,1741391432887,-500.0,0.00061862,2]
[355618182,1741391432896,-518.5,0.00061862,2]
[355618183,1741391432906,-537.6845,0.00061862,2]
[355618184,1741391432915,-557.5788265,0.00061862,2]
[355618185,1741391432925,-578.20924308,0.00061862,2]
[355618186,1741391432935,-599.60298507,0.00061862,2]
[355618187,1741391432944,-621.78829552,0.00061862,2]
[355618188,1741391432954,-644.79446246,0.00061862,2]
[355618189,1741391432963,-668.65185757,0.00061862,2]
[355618190,1741391432974,-693.3919763,0.00061862,2]
[355618191,1741391432986,-1342.25347127,0.00061862,2]
[355618192,1741391432995,-200.0,0.00061929,120]
[355618193,1741391433005,-176.12,0.00062269,10]
[355618194,1741391433014,-351.07,0.00062269,10]
[355618195,1741391433024,-45396.68996726,0.00062272,30]
[355618216,1741391438043,-500.0,0.00048126,120]
[355618217,1741391438052,-1279.99999998,0.00062272,30]
[355618218,1741391438648,-175.36170151,0.00062272,30]
[355618219,1741391438660,-13507.64139475,0.00062272,30]
[355618220,1741391438671,-1814.03597653,0.00062272,30]
[355618221,1741391438742,-8730.919189,0.00062272,30]
[355618226,1741391439907,-137952.3795864,0.00062272,30]
[355618227,1741391439920,-1025604.03667457,0.00062272,30]
[355618228,1741391439931,-500.0,0.00062273,14]
[355618229,1741391439942,-500.0,0.00062273,15]
[355618231,1741391439952,-500.0,0.0006228,120]
[355618233,1741391439964,-5000.0,0.000635,120]
[355618234,1741391439974,-2999.96999901,0.000645,120]
[355618236,1741391439984,-5000.0,0.000645,120]
[355618238,1741391439995,-5000.0,0.000665,120]
[355618240,1741391440006,-5000.0,0.000665,120]
[355618242,1741391440016,-537.62429979,0.00066712,120]
[355618244,1741391440025,-500.0,0.00066712,120]
[355618246,1741391440035,-500.0,0.00066849,2]
[355618248,1741391440045,-800.0,0.00066986,120]
[355618249,1741391440055,-500.0,0.00067019,15]
[355618251,1741391440066,-800.0,0.0006726,120]
[355618252,1741391440077,-5000.0,0.000673,120]
[355618253,1741391440087,-1000.0,0.00067752,14]
[355618255,1741391440097,-1000.0,0.00067752,15]
[355618257,1741391440107,-800.0,0.00067808,120]
[355618258,1741391440117,-500.0,0.00067816,120]
[355618259,1741391440128,-204.017126,0.00067816,120]
[355618260,1741391440138,-292.56,0.0006787,10]
[355618261,1741391440148,-500.0,0.00067879,2]
[355618262,1741391440159,-500.0,0.00067879,2]
[355618263,1741391440170,-500.0,0.00067879,2]
[355618264,1741391440183,-513.22427229,0.00067879,2]
[355618265,1741391440194,-53362.2961247,0.0006788,6]
[355618266,1741391440204,-55555.0,0.0006789,120]
[355618267,1741391440214,-150.0,0.00067973,3]
[355618268,1741391440226,-213449.184499,0.0006798,6]
[355618269,1741391440237,-53362.2961247,0.0006799,6]
[355618270,1741391440248,-202000.0,0.00068,120]
[355618271,1741391440259,-1153.79,0.00068,30]
[355618272,1741391440270,-750.98,0.00068,30]
[355618273,1741391440280,-200.0,0.00068049,120]
[355618274,1741391440290,-500.0,0.00068219,2]
[355618275,1741391440301,-800.0,0.00068356,120]
[355618276,1741391440311,-1000.0,0.00068493,30]
[355618277,1741391440321,-1031.47577163,0.00068493,30]
[355618278,1741391440331,-666.0,0.00068493,120]
[355618279,1741391440342,-5000.0,0.000685,120]
[355618280,1741391440353,-250.0,0.00068521,3]
[355618281,1741391440364,-1778.0817771,0.00068599,120]
[355618282,1741391440375,-200.0,0.0006885,120]
[355618284,1741391440385,-222000.0,0.000689,2]
[355618287,1741391440509,-800.0,0.00068904,120]
[355618288,1741391440520,-500.0,0.00068973,15]
[355618289,1741391440530,-254.72972561,0.00068973,15]
[355618290,1741391440540,-38587.62628952,0.00069,120]
[355618291,1741391440694,-0.09256752,0.00049509,120]
[355618292,1741391440772,-18.10869946,0.00049509,120]
[355618293,1741391440784,-481.79873302,0.00049509,120]
[355618294,1741391440793,-243.8,0.00062262,10]
[355618295,1741391440802,-5419.96442083,0.00069,120]
[355618296,1741391440814,-22529.42847527,0.00069,120]
[355618297,1741391440825,-453.40201646,0.00069,120]
[355618333,1741391443192,-500.0,0.00047999,120]
[355618334,1741391443202,-7388.00761577,0.00069,120]
[355618335,1741391443670,-5988.44197974,0.00069,120]
[355618344,1741391446108,-223.69158581,0.00067879,2]
[355618345,1741391446117,-25248.32582303,0.00069,120]
[355618347,1741391446374,-5578.51233791,0.00069,120]
[355618348,1741391453450,500.0,0.00041092,30]
[355618349,1741391510387,-500.0,0.00047999,120]
[355618350,1741391510412,-501.70813587,0.00047999,120]
[355618351,1741391510437,-500.0,0.00047999,120]
[355618352,1741391510475,-500.0,0.00047999,120]
[355618353,1741391510500,-500.0,0.00047999,120]
[355618354,1741391510525,-500.0,0.00047999,120]
[355618355,1741391510551,-500.0,0.00048126,120]
[355618356,1741391510576,-500.0,0.00048139,100]
[355618357,1741391510601,-500.0,0.00048239,100]
[355618358,1741391510625,-504.42252422,0.00048282,120]
[355618359,1741391510650,-500.0,0.00048339,90]
[355618360,1741391510675,-500.0,0.00048439,100]
[355618361,1741391510700,-3986.37260245,0.00049,120]
[355618362,1741391514977,500.0,0.00047999,120]
[355618363,1741391517140,294.83648169,0.00047999,120]
[355618364,1741391533324,500.0,0.00047999,120]
[355618365,1741391535882,500.0,0.00047999,120]
[355618366,1741391537844,500.0,0.00047999,120]
[355618367,1741391541908,500.0,0.00047999,120]
[355618368,1741391543795,500.0,0.00047999,120]
[355618369,1741391566858,500.0,0.00048126,120]
[355618370,1741391568685,500.0,0.00048126,120]
[355618371,1741391576930,500.0,0.00048999,120]
[355618373,1741391580478,509.75791295,0.00047999,120]
[355618376,1741391586350,500.0,0.00047999,120]
[355618378,1741391602004,500.0,0.00047999,120]
[355618379,1741391610749,200.0,0.00047615,120]
[355618380,1741391623703,500.0,0.00047999,120]
[355618381,1741391625662,500.0,0.00047999,120]
[355618382,1741391642195,500.0,0.00048999,120]
[355618383,1741391658416,500.0,0.00048999,120]
[355618384,1741391658690,500.0,0.00049273,120]
[355618385,1741391658925,500.0,0.00049547,120]
[355618386,1741391659196,436.74466819,0.00049821,120]
[355618387,1741391663160,500.0,0.00048999,120]
[355618388,1741391663638,630.08,0.00048999,120]
[355618389,1741391670483,500.0,0.00047999,120]
[355618390,1741391704218,500.0,0.000376,5]
[355618391,1741391704273,500.0,0.00043079,10]
[355618392,1741391707170,503.33570754,0.00048999,120]
[355618393,1741391708911,501.73994085,0.00048999,120]
[355618394,1741391712570,500.0,0.000376,5]
[355618395,1741391712645,1000.0,0.00043079,10]
[355618396,1741391718642,500.0,0.000376,5]
[355618397,1741391718697,1000.0,0.00043079,10]
[355618398,1741391719579,500.0,0.00048999,120]
[355618399,1741391722480,507.79259009,0.00048999,120]
[355618400,1741391724260,500.0,0.00048999,120]
[355618401,1741391729701,500.0,0.00048999,120]
[355618402,1741391736978,500.0,0.00048999,120]
[355618403,1741391740909,500.0,0.00048999,120]
[355618404,1741391745307,236.85507866,0.0005,2]
[355618405,1741391746564,620.41136387,0.00048999,120]
[355618406,1741391753972,5000.0,0.0005,2]
[355618407,1741391764267,500.0,0.000376,5]
[355618408,1741391764381,1000.0,0.00043079,10]
[355618409,1741391768914,500.0,0.0004535,10]
[355618410,1741391785920,506.31972948,0.00048999,120]
[355618411,1741391787935,501.65574811,0.00048999,120]
[355618412,1741391788029,2621.0,0.00045,30]
[355618413,1741391798225,500.0,0.00048999,120]
[355618414,1741391803258,507.46195211,0.00048999,120]
[355618415,1741391805074,509.38595895,0.00048999,120]
[355618416,1741391813290,150.0,0.00049515,30]
[355618417,1741391870535,517.84759694,0.00048999,120]
[355618418,1741391872389,510.50823485,0.00048999,120]
[355618419,1741391914608,500.0,0.00048999,120]
[355618420,1741391918909,500.0,0.00048999,120]
[355618421,1741391925400,300.0,0.00048999,120]
[355618422,1741391927892,500.0,0.00048999,120]
[355618423,1741391936365,500.0,0.00048999,120]
[355618424,1741391939082,167.782,0.00049801,120]
[355618425,1741391939759,205.51525,0.00049801,120]
[355618426,1741391941484,338.69475,0.00049801,120]
[355618427,1741391948380,505.65172508,0.00048999,120]
[355618428,1741391964315,528.01,0.00048999,120]
[355618429,1741391973303,355.69256589,0.00048999,120]
[355618430,1741391999320,500.0,0.00048999,120]
[355618431,1741392010918,500.0,0.00049509,120]
[355618432,1741392012876,840.41748221,0.000233,30]
[355618433,1741392012906,91.45251779,0.000233,30]
[355618434,1741392202327,16364.0,0.00045,2]
[355618435,1741392295985,5000.0,0.00045,120]
[355618436,1741392367069,2095.71,0.00045,100]
[355618437,1741392422503,2000.0,0.00045,90]
[355618438,1741392426124,-200.0,0.00047116,120]
[355618439,1741392426148,-200.0,0.00050008,120]
[355618440,1741392426170,-150.0,0.00050885,30]
[355618441,1741392426193,-500.0,0.00052025,10]
[355618442,1741392426214,-500.0,0.0005266,10]
[355618443,1741392426237,-2164.29025503,0.00052998,120]